[Event "Titled Tuesday Blitz February 21 Late 2023"]
[White "Rego, Pedro Filipe"]
[Black "Vovk, Orest"]
[WhiteFideId "1904310"]
[BlackFideId "14113490"]
[WhiteElo "2312"]
[BlackElo "2315"]
[Result "1-0"]
[Round "09"]
[TimeControl "180+2"]
[Date "2023.02.21"]
[WhiteClock "0:00:43"]
[BlackClock "0:00:15"]

1. c4 {[%clk 0:02:55]}  g5 {[%clk 0:02:59]} 2. d4 {[%clk 0:02:54]}  h6 {[%clk 0:02:59]} 3. Nc3 {[%clk 0:02:53]}  Bg7 {[%clk 0:03:00]} 4. g3 {[%clk 0:02:53]}  c5 {[%clk 0:03:00]} 5. Nf3 {[%clk 0:02:53]}  g4 {[%clk 0:02:58]} 6. Ne5 {[%clk 0:02:53]}  d6 {[%clk 0:02:58]} 7. Nd3 {[%clk 0:02:48]}  Bxd4 {[%clk 0:02:55]} 8. Bg2 {[%clk 0:02:48]}  Bxc3+ {[%clk 0:02:53]} 9. bxc3 {[%clk 0:02:48]}  Qa5 {[%clk 0:02:53]} 10. O-O {[%clk 0:02:46]}  Nf6 {[%clk 0:02:51]} 11. Rb1 {[%clk 0:02:44]}  Qxc3 {[%clk 0:02:43]} 12. Bb2 {[%clk 0:02:29]}  Qxc4 {[%clk 0:02:41]} 13. Bxf6 {[%clk 0:02:29]}  exf6 {[%clk 0:02:41]} 14. Rxb7 {[%clk 0:02:26]}  d5 {[%clk 0:02:33]} 15. Rc7 {[%clk 0:02:22]}  Na6 {[%clk 0:02:26]} 16. Rc6 {[%clk 0:02:22]}  Be6 {[%clk 0:02:11]} 17. Nf4 {[%clk 0:02:03]}  Kd7 {[%clk 0:01:51]} 18. Nxd5 {[%clk 0:02:02]}  Bxd5 {[%clk 0:01:46]} 19. Bxd5 {[%clk 0:01:56]}  Qb5 {[%clk 0:01:29]} 20. Rxa6 {[%clk 0:01:37]}  Qxa6 {[%clk 0:01:27]} 21. Bxa8+ {[%clk 0:01:34]}  Ke7 {[%clk 0:01:26]} 22. Be4 {[%clk 0:01:30]}  Qxa2 {[%clk 0:01:25]} 23. Qc1 {[%clk 0:01:25]}  c4 {[%clk 0:01:16]} 24. Qe3 {[%clk 0:01:20]}  Kf8 {[%clk 0:01:06]} 25. Rc1 {[%clk 0:01:16]}  Kg7 {[%clk 0:01:05]} 26. Bd5 {[%clk 0:01:12]}  Qb2 {[%clk 0:00:49]} 27. Rxc4 {[%clk 0:01:06]}  h5 {[%clk 0:00:44]} 28. Rc7 {[%clk 0:01:03]}  Rf8 {[%clk 0:00:40]} 29. Qxa7 {[%clk 0:01:01]}  Qe5 {[%clk 0:00:33]} 30. Rxf7+ {[%clk 0:00:57]}  Rxf7 {[%clk 0:00:33]} 31. Qxf7+ {[%clk 0:00:57]}  Kh6 {[%clk 0:00:34]} 32. Qe6 {[%clk 0:00:53]}  Qa1+ {[%clk 0:00:28]} 33. Kg2 {[%clk 0:00:52]}  Qb2 {[%clk 0:00:25]} 34. Be4 {[%clk 0:00:49]}  h4 {[%clk 0:00:15]} 35. Qxg4 {[%clk 0:00:43]}  hxg3 {[%clk 0:00:15]} 1-0


[Site "https://www.chess.com"]

[Event "Titled Tuesday Blitz February 21 Late 2023"]
[White "Pakleza, Zbigniew"]
[Black "mohsengabr2002"]
[WhiteFideId "1119290"]
[WhiteElo "2494"]
[BlackElo "2349"]
[Result "1-0"]
[Round "09"]
[TimeControl "180+2"]
[Date "2023.02.21"]
[WhiteClock "0:00:13"]
[BlackClock "0:00:05"]

1. d4 {[%clk 0:03:00]}  d5 {[%clk 0:02:59]} 2. Bf4 {[%clk 0:03:00]}  c6 {[%clk 0:02:59]} 3. e3 {[%clk 0:03:00]}  Qb6 {[%clk 0:02:59]} 4. Qc1 {[%clk 0:02:58]}  Bf5 {[%clk 0:02:58]} 5. c4 {[%clk 0:02:58]}  e6 {[%clk 0:02:58]} 6. Nc3 {[%clk 0:02:59]}  Nd7 {[%clk 0:02:58]} 7. Nf3 {[%clk 0:02:59]}  Ngf6 {[%clk 0:02:58]} 8. h3 {[%clk 0:03:00]}  Be7 {[%clk 0:02:58]} 9. Be2 {[%clk 0:03:00]}  O-O {[%clk 0:02:58]} 10. c5 {[%clk 0:03:00]}  Qd8 {[%clk 0:02:57]} 11. b4 {[%clk 0:03:00]}  Ne4 {[%clk 0:02:54]} 12. O-O {[%clk 0:03:00]}  Rc8 {[%clk 0:02:52]} 13. Rd1 {[%clk 0:02:50]}  Nxc3 {[%clk 0:02:52]} 14. Qxc3 {[%clk 0:02:50]}  Bf6 {[%clk 0:02:52]} 15. Rac1 {[%clk 0:02:29]}  a6 {[%clk 0:02:48]} 16. a4 {[%clk 0:02:28]}  h6 {[%clk 0:02:48]} 17. Qb3 {[%clk 0:02:23]}  g5 {[%clk 0:02:32]} 18. Bd6 {[%clk 0:02:20]}  Be7 {[%clk 0:02:30]} 19. Bh2 {[%clk 0:02:20]}  f6 {[%clk 0:02:23]} 20. b5 {[%clk 0:02:18]}  axb5 {[%clk 0:02:23]} 21. axb5 {[%clk 0:02:19]}  e5 {[%clk 0:02:21]} 22. Ra1 {[%clk 0:02:13]}  Rf7 {[%clk 0:02:10]} 23. Ra7 {[%clk 0:01:57]}  Rb8 {[%clk 0:01:58]} 24. Qa4 {[%clk 0:01:45]}  Qc8 {[%clk 0:01:31]} 25. Qa2 {[%clk 0:01:15]}  Rf8 {[%clk 0:01:04]} 26. Ra1 {[%clk 0:01:07]}  Bg6 {[%clk 0:00:58]} 27. Nd2 {[%clk 0:01:01]}  f5 {[%clk 0:00:46]} 28. bxc6 {[%clk 0:00:53]}  bxc6 {[%clk 0:00:45]} 29. Ba6 {[%clk 0:00:52]}  Qe8 {[%clk 0:00:39]} 30. Qa4 {[%clk 0:00:48]}  f4 {[%clk 0:00:33]} 31. Qxc6 {[%clk 0:00:44]}  Nxc5 {[%clk 0:00:17]} 32. Qxd5+ {[%clk 0:00:28]}  Bf7 {[%clk 0:00:15]} 33. Qxe5 {[%clk 0:00:27]}  Nxa6 {[%clk 0:00:14]} 34. Rxe7 {[%clk 0:00:25]}  Qb5 {[%clk 0:00:09]} 35. exf4 {[%clk 0:00:20]}  gxf4 {[%clk 0:00:07]} 36. Bxf4 {[%clk 0:00:20]}  Qxe5 {[%clk 0:00:07]} 37. Bxe5 {[%clk 0:00:19]}  Rb2 {[%clk 0:00:06]} 38. Rxa6 {[%clk 0:00:13]}  Rxd2 {[%clk 0:00:05]} 39. Rxh6 {[%clk 0:00:13]} 1-0


[Site "https://www.chess.com"]

[Event "Titled Tuesday Blitz February 21 Late 2023"]
[White "Buchenau, Frank"]
[Black "Aradhya, Garg"]
[WhiteFideId "4604350"]
[BlackFideId "25006746"]
[WhiteElo "2222"]
[BlackElo "2284"]
[Result "0-1"]
[Round "09"]
[TimeControl "180+2"]
[Date "2023.02.21"]
[WhiteClock "0:00:23"]
[BlackClock "0:02:08"]

1. e4 {[%clk 0:03:00]}  e5 {[%clk 0:02:59]} 2. Bc4 {[%clk 0:03:00]}  Nf6 {[%clk 0:02:59]} 3. d3 {[%clk 0:03:00]}  c6 {[%clk 0:02:58]} 4. Nf3 {[%clk 0:03:00]}  d5 {[%clk 0:02:58]} 5. Bb3 {[%clk 0:03:00]}  a5 {[%clk 0:02:57]} 6. a4 {[%clk 0:02:52]}  Bb4+ {[%clk 0:02:53]} 7. c3 {[%clk 0:02:51]}  Bd6 {[%clk 0:02:52]} 8. exd5 {[%clk 0:02:46]}  cxd5 {[%clk 0:02:52]} 9. Na3 {[%clk 0:02:44]}  Bxa3 {[%clk 0:02:50]} 10. Rxa3 {[%clk 0:02:43]}  Nc6 {[%clk 0:02:50]} 11. d4 {[%clk 0:02:37]}  e4 {[%clk 0:02:49]} 12. Ne5 {[%clk 0:02:37]}  O-O {[%clk 0:02:49]} 13. Bf4 {[%clk 0:02:30]}  Re8 {[%clk 0:02:46]} 14. O-O {[%clk 0:02:29]}  h6 {[%clk 0:02:44]} 15. f3 {[%clk 0:02:29]}  Be6 {[%clk 0:02:43]} 16. Bc2 {[%clk 0:02:16]}  Rc8 {[%clk 0:02:38]} 17. Qd2 {[%clk 0:02:01]}  exf3 {[%clk 0:02:37]} 18. Rxf3 {[%clk 0:01:57]}  Ne4 {[%clk 0:02:37]} 19. Qe1 {[%clk 0:01:28]}  f5 {[%clk 0:02:33]} 20. Nxc6 {[%clk 0:01:24]}  bxc6 {[%clk 0:02:33]} 21. Be5 {[%clk 0:01:16]}  Re7 {[%clk 0:02:28]} 22. b4 {[%clk 0:01:09]}  Rb7 {[%clk 0:02:24]} 23. Bd3 {[%clk 0:01:05]}  Qe7 {[%clk 0:02:20]} 24. Ba6 {[%clk 0:01:04]}  axb4 {[%clk 0:02:19]} 25. cxb4 {[%clk 0:00:52]}  Rxb4 {[%clk 0:02:18]} 26. Bxc8 {[%clk 0:00:50]}  Bxc8 {[%clk 0:02:19]} 27. a5 {[%clk 0:00:44]}  Ba6 {[%clk 0:02:18]} 28. Rfb3 {[%clk 0:00:41]}  Rc4 {[%clk 0:02:16]} 29. Rb6 {[%clk 0:00:36]}  Qxa3 {[%clk 0:02:09]} 30. Rxa6 {[%clk 0:00:23]}  Rc1 {[%clk 0:02:08]} 0-1


[Site "https://www.chess.com"]

[Event "Titled Tuesday Blitz February 21 Late 2023"]
[White "Delorme, Axel"]
[Black "Martinez Ramirez, Lennis"]
[WhiteFideId "632023"]
[BlackFideId "3509079"]
[WhiteElo "2483"]
[BlackElo "2426"]
[Result "0-1"]
[Round "09"]
[TimeControl "180+2"]
[Date "2023.02.21"]
[WhiteClock "0:00:38"]
[BlackClock "0:00:22"]

1. e4 {[%clk 0:03:00]}  c5 {[%clk 0:02:58]} 2. Nf3 {[%clk 0:03:01]}  d6 {[%clk 0:02:58]} 3. Bb5+ {[%clk 0:03:01]}  Nd7 {[%clk 0:02:57]} 4. Ba4 {[%clk 0:03:01]}  a6 {[%clk 0:02:57]} 5. c4 {[%clk 0:03:01]}  Nf6 {[%clk 0:02:53]} 6. Nc3 {[%clk 0:03:01]}  g6 {[%clk 0:02:53]} 7. O-O {[%clk 0:03:01]}  Bg7 {[%clk 0:02:53]} 8. d3 {[%clk 0:03:01]}  O-O {[%clk 0:02:53]} 9. h3 {[%clk 0:03:01]}  e5 {[%clk 0:02:44]} 10. a3 {[%clk 0:02:56]}  Nh5 {[%clk 0:02:36]} 11. b4 {[%clk 0:02:50]}  Nf4 {[%clk 0:02:34]} 12. Nd5 {[%clk 0:02:34]}  g5 {[%clk 0:01:52]} 13. Kh2 {[%clk 0:02:15]}  h6 {[%clk 0:01:50]} 14. Rb1 {[%clk 0:02:06]}  Nb6 {[%clk 0:01:25]} 15. Nxb6 {[%clk 0:01:51]}  Qxb6 {[%clk 0:01:24]} 16. Be3 {[%clk 0:01:52]}  Qc7 {[%clk 0:01:21]} 17. Ng1 {[%clk 0:01:43]}  f5 {[%clk 0:01:20]} 18. g3 {[%clk 0:01:37]}  Ne6 {[%clk 0:00:50]} 19. exf5 {[%clk 0:01:34]}  Rxf5 {[%clk 0:00:51]} 20. Bc2 {[%clk 0:01:12]}  Nd4 {[%clk 0:00:50]} 21. f4 {[%clk 0:01:04]}  exf4 {[%clk 0:00:48]} 22. gxf4 {[%clk 0:01:01]}  gxf4 {[%clk 0:00:47]} 23. Rxf4 {[%clk 0:01:00]}  Be5 {[%clk 0:00:47]} 24. Ne2 {[%clk 0:00:49]}  Nxe2 {[%clk 0:00:44]} 25. Qxe2 {[%clk 0:00:50]}  Rxf4 {[%clk 0:00:44]} 26. Bxf4 {[%clk 0:00:45]}  Bxf4+ {[%clk 0:00:44]} 27. Kh1 {[%clk 0:00:46]}  Qc6+ {[%clk 0:00:32]} 28. Kg1 {[%clk 0:00:41]}  Bxh3 {[%clk 0:00:29]} 29. d4 {[%clk 0:00:38]}  Re8 {[%clk 0:00:22]} 0-1


[Site "https://www.chess.com"]

[Event "Titled Tuesday Blitz February 21 Late 2023"]
[White "Fiorito, Francisco"]
[Black "Nilsen, Tobias Lang"]
[WhiteFideId "180165"]
[BlackFideId "1521624"]
[WhiteElo "2305"]
[BlackElo "2247"]
[Result "1-0"]
[Round "09"]
[TimeControl "180+2"]
[Date "2023.02.21"]
[WhiteClock "0:00:51"]
[BlackClock "0:00:15"]

1. d4 {[%clk 0:03:00]}  d5 {[%clk 0:02:59]} 2. Nc3 {[%clk 0:03:00]}  e6 {[%clk 0:03:00]} 3. Bf4 {[%clk 0:03:00]}  Nf6 {[%clk 0:02:58]} 4. Nb5 {[%clk 0:02:59]}  Na6 {[%clk 0:02:58]} 5. e3 {[%clk 0:02:59]}  c6 {[%clk 0:02:57]} 6. Nc3 {[%clk 0:03:00]}  Nc7 {[%clk 0:02:55]} 7. g4 {[%clk 0:02:57]}  Bb4 {[%clk 0:02:53]} 8. a3 {[%clk 0:02:53]}  Bxc3+ {[%clk 0:02:51]} 9. bxc3 {[%clk 0:02:54]}  Nb5 {[%clk 0:02:48]} 10. Bxb5 {[%clk 0:02:41]}  cxb5 {[%clk 0:02:48]} 11. f3 {[%clk 0:02:41]}  Nd7 {[%clk 0:02:32]} 12. Ne2 {[%clk 0:02:38]}  Nb6 {[%clk 0:02:30]} 13. h4 {[%clk 0:02:37]}  Nc4 {[%clk 0:02:31]} 14. h5 {[%clk 0:02:34]}  f6 {[%clk 0:02:28]} 15. Qd3 {[%clk 0:02:25]}  e5 {[%clk 0:02:22]} 16. Bg3 {[%clk 0:02:22]}  Be6 {[%clk 0:02:18]} 17. h6 {[%clk 0:02:20]}  g6 {[%clk 0:02:15]} 18. g5 {[%clk 0:02:17]}  fxg5 {[%clk 0:02:03]} 19. dxe5 {[%clk 0:02:17]}  Bf5 {[%clk 0:01:54]} 20. Qd4 {[%clk 0:02:15]}  Rf8 {[%clk 0:01:49]} 21. O-O {[%clk 0:02:07]}  Qd7 {[%clk 0:01:40]} 22. e4 {[%clk 0:01:56]}  dxe4 {[%clk 0:01:36]} 23. fxe4 {[%clk 0:01:57]}  Be6 {[%clk 0:01:29]} 24. Rxf8+ {[%clk 0:01:55]}  Kxf8 {[%clk 0:01:30]} 25. Rf1+ {[%clk 0:01:55]}  Kg8 {[%clk 0:01:29]} 26. Rf6 {[%clk 0:01:48]}  Qe7 {[%clk 0:01:14]} 27. Bf2 {[%clk 0:01:30]}  b6 {[%clk 0:01:12]} 28. Bg3 {[%clk 0:01:11]}  Re8 {[%clk 0:00:44]} 29. Qf2 {[%clk 0:01:08]}  Qc5 {[%clk 0:00:32]} 30. Nd4 {[%clk 0:01:07]}  Nxe5 {[%clk 0:00:16]} 31. Bxe5 {[%clk 0:00:51]}  Qxe5 {[%clk 0:00:15]} 32. Nxe6 {[%clk 0:00:51]} 1-0


[Site "https://www.chess.com"]

[Event "Titled Tuesday Blitz February 21 Late 2023"]
[White "Petukhov, Dmitry"]
[Black "Leve, Nitai"]
[WhiteFideId "4142748"]
[BlackFideId "2006898"]
[WhiteElo "2350"]
[BlackElo "2128"]
[Result "1-0"]
[Round "09"]
[TimeControl "180+2"]
[Date "2023.02.21"]
[WhiteClock "0:00:08"]
[BlackClock "0:00:05"]

1. e4 {[%clk 0:03:00]}  e6 {[%clk 0:02:52]} 2. d4 {[%clk 0:02:59]}  d5 {[%clk 0:02:53]} 3. e5 {[%clk 0:02:59]}  c5 {[%clk 0:02:48]} 4. c3 {[%clk 0:02:57]}  Qb6 {[%clk 0:02:45]} 5. Nf3 {[%clk 0:02:57]}  Bd7 {[%clk 0:02:45]} 6. a3 {[%clk 0:02:57]}  cxd4 {[%clk 0:02:45]} 7. cxd4 {[%clk 0:02:57]}  Bb5 {[%clk 0:02:45]} 8. Bxb5+ {[%clk 0:02:55]}  Qxb5 {[%clk 0:02:46]} 9. Nc3 {[%clk 0:02:56]}  Qa6 {[%clk 0:02:46]} 10. Qb3 {[%clk 0:02:55]}  Nc6 {[%clk 0:02:46]} 11. Nb5 {[%clk 0:02:50]}  Rc8 {[%clk 0:02:43]} 12. Bd2 {[%clk 0:02:49]}  Nh6 {[%clk 0:02:22]} 13. Rc1 {[%clk 0:02:39]}  Nf5 {[%clk 0:01:36]} 14. O-O {[%clk 0:02:39]}  h5 {[%clk 0:01:35]} 15. Bg5 {[%clk 0:02:19]}  Be7 {[%clk 0:01:29]} 16. Bxe7 {[%clk 0:02:18]}  Kxe7 {[%clk 0:01:30]} 17. Rc5 {[%clk 0:02:07]}  g5 {[%clk 0:00:49]} 18. Nxg5 {[%clk 0:01:54]}  Rhg8 {[%clk 0:00:41]} 19. Nf3 {[%clk 0:01:45]}  Ncxd4 {[%clk 0:00:39]} 20. Nfxd4 {[%clk 0:01:36]}  Rxc5 {[%clk 0:00:33]} 21. Nxf5+ {[%clk 0:01:37]}  exf5 {[%clk 0:00:33]} 22. Nd6 {[%clk 0:01:37]}  Ke6 {[%clk 0:00:12]} 23. Qf3 {[%clk 0:01:29]}  Kxe5 {[%clk 0:00:07]} 24. Qxf5+ {[%clk 0:01:04]}  Kxd6 {[%clk 0:00:07]} 25. Qf6+ {[%clk 0:01:05]}  Kc7 {[%clk 0:00:06]} 26. Qxf7+ {[%clk 0:01:05]}  Kb6 {[%clk 0:00:05]} 27. Qxg8 {[%clk 0:00:59]}  Qe2 {[%clk 0:00:06]} 28. Qg6+ {[%clk 0:00:52]}  Rc6 {[%clk 0:00:06]} 29. Qb1 {[%clk 0:00:43]}  d4 {[%clk 0:00:05]} 30. Qd1 {[%clk 0:00:41]}  Qe4 {[%clk 0:00:03]} 31. Re1 {[%clk 0:00:40]}  Qd5 {[%clk 0:00:03]} 32. Qd3 {[%clk 0:00:37]}  Rd6 {[%clk 0:00:02]} 33. Rd1 {[%clk 0:00:36]}  a6 {[%clk 0:00:02]} 34. h4 {[%clk 0:00:36]}  Ka7 {[%clk 0:00:03]} 35. g3 {[%clk 0:00:35]}  Qe5 {[%clk 0:00:03]} 36. Rd2 {[%clk 0:00:32]}  b5 {[%clk 0:00:03]} 37. Qe2 {[%clk 0:00:31]}  Qd5 {[%clk 0:00:02]} 38. Qe7+ {[%clk 0:00:29]}  Rd7 {[%clk 0:00:02]} 39. Qg5 {[%clk 0:00:26]}  Qc4 {[%clk 0:00:02]} 40. Qxh5 {[%clk 0:00:20]}  d3 {[%clk 0:00:02]} 41. Qd1 {[%clk 0:00:19]}  Kb6 {[%clk 0:00:02]} 42. Qe1 {[%clk 0:00:17]}  a5 {[%clk 0:00:02]} 43. Qe3+ {[%clk 0:00:16]}  Ka6 {[%clk 0:00:02]} 44. h5 {[%clk 0:00:16]}  b4 {[%clk 0:00:03]} 45. axb4 {[%clk 0:00:16]}  axb4 {[%clk 0:00:03]} 46. h6 {[%clk 0:00:16]}  Rd6 {[%clk 0:00:03]} 47. h7 {[%clk 0:00:14]}  Rd8 {[%clk 0:00:03]} 48. Qh6+ {[%clk 0:00:12]}  Ka5 {[%clk 0:00:03]} 49. Qg5+ {[%clk 0:00:12]}  Rd5 {[%clk 0:00:03]} 50. Qxd5+ {[%clk 0:00:11]}  Qxd5 {[%clk 0:00:01]} 51. h8=Q {[%clk 0:00:12]}  Ka4 {[%clk 0:00:01]} 52. Qh7 {[%clk 0:00:08]}  Qc4 {[%clk 0:00:02]} 53. Qxd3 {[%clk 0:00:08]}  Qc1+ {[%clk 0:00:03]} 54. Rd1 {[%clk 0:00:08]}  Qc6 {[%clk 0:00:03]} 55. b3+ {[%clk 0:00:08]}  Ka3 {[%clk 0:00:03]} 56. Ra1+ {[%clk 0:00:06]}  Kb2 {[%clk 0:00:04]} 57. Qd4+ {[%clk 0:00:07]}  Kxb3 {[%clk 0:00:04]} 58. Rb1+ {[%clk 0:00:07]}  Ka2 {[%clk 0:00:05]} 59. Qb2# {[%clk 0:00:08]} 1-0


[Site "https://www.chess.com"]

[Event "Titled Tuesday Blitz February 21 Late 2023"]
[White "Vaglio Mattey, Emanuel"]
[Black "Drnovsek, Gal"]
[WhiteFideId "6504167"]
[BlackFideId "14607077"]
[WhiteElo "2155"]
[BlackElo "2397"]
[Result "1-0"]
[Round "09"]
[TimeControl "180+2"]
[Date "2023.02.21"]
[WhiteClock "0:00:36"]
[BlackClock "0:01:39"]

1. d4 {[%clk 0:03:00]}  Nf6 {[%clk 0:02:56]} 2. Nf3 {[%clk 0:03:00]}  g6 {[%clk 0:02:54]} 3. Bg5 {[%clk 0:03:01]}  Bg7 {[%clk 0:02:54]} 4. Nbd2 {[%clk 0:03:01]}  O-O {[%clk 0:02:54]} 5. e3 {[%clk 0:03:02]}  c6 {[%clk 0:02:54]} 6. c3 {[%clk 0:02:58]}  d6 {[%clk 0:02:55]} 7. a4 {[%clk 0:02:55]}  Qc7 {[%clk 0:02:55]} 8. a5 {[%clk 0:02:52]}  e5 {[%clk 0:02:49]} 9. Bxf6 {[%clk 0:02:15]}  Bxf6 {[%clk 0:02:47]} 10. Be2 {[%clk 0:02:15]}  Re8 {[%clk 0:02:46]} 11. O-O {[%clk 0:02:11]}  e4 {[%clk 0:02:41]} 12. Ne1 {[%clk 0:02:12]}  d5 {[%clk 0:02:40]} 13. c4 {[%clk 0:02:12]}  Bg7 {[%clk 0:02:39]} 14. cxd5 {[%clk 0:02:12]}  cxd5 {[%clk 0:02:39]} 15. Nb3 {[%clk 0:02:11]}  Nc6 {[%clk 0:02:39]} 16. Rc1 {[%clk 0:02:09]}  f5 {[%clk 0:02:36]} 17. Nc2 {[%clk 0:02:09]}  f4 {[%clk 0:02:33]} 18. exf4 {[%clk 0:02:08]}  Qxf4 {[%clk 0:02:32]} 19. Ne3 {[%clk 0:02:08]}  Be6 {[%clk 0:02:31]} 20. a6 {[%clk 0:02:04]}  Rab8 {[%clk 0:02:27]} 21. axb7 {[%clk 0:02:03]}  Ne7 {[%clk 0:02:26]} 22. Nc5 {[%clk 0:02:02]}  Bf7 {[%clk 0:02:18]} 23. g3 {[%clk 0:01:20]}  Qd6 {[%clk 0:02:16]} 24. Bb5 {[%clk 0:01:15]}  Red8 {[%clk 0:02:15]} 25. Qa4 {[%clk 0:01:10]}  Nf5 {[%clk 0:02:07]} 26. Rfd1 {[%clk 0:01:03]}  Nxe3 {[%clk 0:01:56]} 27. fxe3 {[%clk 0:01:03]}  Bh6 {[%clk 0:01:57]} 28. Re1 {[%clk 0:00:58]}  Be8 {[%clk 0:01:54]} 29. Na6 {[%clk 0:00:43]}  Bxb5 {[%clk 0:01:44]} 30. Qxb5 {[%clk 0:00:41]}  Rf8 {[%clk 0:01:39]} 31. Nxb8 {[%clk 0:00:39]}  Qf6 {[%clk 0:01:39]} 32. Qe2 {[%clk 0:00:36]} 1-0


[Site "https://www.chess.com"]

[Event "Titled Tuesday Blitz February 21 Late 2023"]
[White "Santos Flores, Alberto"]
[Black "Goncalves, Davi Sulzbacher"]
[WhiteFideId "3601234"]
[BlackFideId "2154510"]
[WhiteElo "2164"]
[BlackElo "2282"]
[Result "1-0"]
[Round "09"]
[TimeControl "180+2"]
[Date "2023.02.21"]
[WhiteClock "0:01:45"]
[BlackClock "0:00:18"]

1. e4 {[%clk 0:03:00]}  c6 {[%clk 0:02:54]} 2. d4 {[%clk 0:03:00]}  d5 {[%clk 0:02:55]} 3. Nc3 {[%clk 0:03:01]}  dxe4 {[%clk 0:02:54]} 4. Nxe4 {[%clk 0:03:02]}  Nd7 {[%clk 0:02:55]} 5. Bc4 {[%clk 0:02:59]}  Ngf6 {[%clk 0:02:54]} 6. Ng5 {[%clk 0:03:00]}  e6 {[%clk 0:02:52]} 7. Qe2 {[%clk 0:03:00]}  Nb6 {[%clk 0:02:52]} 8. Bb3 {[%clk 0:03:01]}  Be7 {[%clk 0:02:50]} 9. N5f3 {[%clk 0:02:58]}  O-O {[%clk 0:02:48]} 10. Ne5 {[%clk 0:02:58]}  Nbd7 {[%clk 0:02:47]} 11. Ngf3 {[%clk 0:02:58]}  Nxe5 {[%clk 0:02:43]} 12. Nxe5 {[%clk 0:02:58]}  c5 {[%clk 0:02:40]} 13. dxc5 {[%clk 0:02:57]}  Qa5+ {[%clk 0:02:21]} 14. Bd2 {[%clk 0:02:57]}  Qxc5 {[%clk 0:02:22]} 15. O-O-O {[%clk 0:02:56]}  Bd7 {[%clk 0:02:07]} 16. Nxd7 {[%clk 0:02:37]}  Nxd7 {[%clk 0:02:07]} 17. Be3 {[%clk 0:02:33]}  Qc6 {[%clk 0:01:54]} 18. Qc4 {[%clk 0:02:30]}  Qxc4 {[%clk 0:01:47]} 19. Bxc4 {[%clk 0:02:31]}  Nb6 {[%clk 0:01:44]} 20. Bb3 {[%clk 0:02:30]}  Rfc8 {[%clk 0:01:37]} 21. Kb1 {[%clk 0:02:24]}  Kf8 {[%clk 0:01:33]} 22. a4 {[%clk 0:02:14]}  Bc5 {[%clk 0:01:30]} 23. a5 {[%clk 0:02:06]}  Bxe3 {[%clk 0:01:28]} 24. fxe3 {[%clk 0:02:06]}  Nc4 {[%clk 0:01:28]} 25. Rd7 {[%clk 0:01:53]}  Nxa5 {[%clk 0:01:23]} 26. Rf1 {[%clk 0:01:53]}  f6 {[%clk 0:01:10]} 27. Bxe6 {[%clk 0:01:53]}  Rc6 {[%clk 0:00:25]} 28. Bd5 {[%clk 0:01:50]}  Nc4 {[%clk 0:00:18]} 29. Bxc6 {[%clk 0:01:46]}  Nd2+ {[%clk 0:00:18]} 30. Rxd2 {[%clk 0:01:45]} 1-0


[Site "https://www.chess.com"]

[Event "Titled Tuesday Blitz February 21 Late 2023"]
[White "Rios Escobar, Adan"]
[Black "Golubev, Mikhail"]
[WhiteFideId "3403645"]
[BlackFideId "14100983"]
[WhiteElo "2234"]
[BlackElo "2461"]
[Result "1-0"]
[Round "09"]
[TimeControl "180+2"]
[Date "2023.02.21"]
[WhiteClock "0:00:06"]
[BlackClock "0:00:01"]

1. d4 {[%clk 0:03:00]}  Nf6 {[%clk 0:02:59]} 2. g3 {[%clk 0:03:01]}  c5 {[%clk 0:02:58]} 3. d5 {[%clk 0:03:01]}  e6 {[%clk 0:02:54]} 4. c4 {[%clk 0:03:01]}  exd5 {[%clk 0:02:54]} 5. cxd5 {[%clk 0:03:02]}  d6 {[%clk 0:02:53]} 6. Nc3 {[%clk 0:03:03]}  g6 {[%clk 0:02:54]} 7. Nf3 {[%clk 0:03:03]}  Bg7 {[%clk 0:02:54]} 8. Bg2 {[%clk 0:03:04]}  O-O {[%clk 0:02:54]} 9. O-O {[%clk 0:03:05]}  Re8 {[%clk 0:02:53]} 10. Re1 {[%clk 0:03:04]}  Na6 {[%clk 0:02:35]} 11. Nd2 {[%clk 0:02:56]}  Nc7 {[%clk 0:02:33]} 12. a4 {[%clk 0:02:50]}  b6 {[%clk 0:02:28]} 13. Nc4 {[%clk 0:02:46]}  Ba6 {[%clk 0:02:13]} 14. Na3 {[%clk 0:02:45]}  Qd7 {[%clk 0:01:57]} 15. Qb3 {[%clk 0:02:32]}  Bb7 {[%clk 0:01:38]} 16. Nab5 {[%clk 0:02:14]}  Nxb5 {[%clk 0:01:38]} 17. axb5 {[%clk 0:02:11]}  Ng4 {[%clk 0:01:16]} 18. Bh3 {[%clk 0:02:01]}  f5 {[%clk 0:01:15]} 19. Bxg4 {[%clk 0:01:55]}  fxg4 {[%clk 0:01:15]} 20. e4 {[%clk 0:01:56]}  Bxc3 {[%clk 0:00:47]} 21. bxc3 {[%clk 0:01:43]}  Qf7 {[%clk 0:00:46]} 22. c4 {[%clk 0:01:36]}  Rf8 {[%clk 0:00:35]} 23. Ra2 {[%clk 0:01:29]}  h5 {[%clk 0:00:32]} 24. Rae2 {[%clk 0:01:27]}  a6 {[%clk 0:00:22]} 25. Bb2 {[%clk 0:01:23]}  axb5 {[%clk 0:00:23]} 26. Qc3 {[%clk 0:01:23]}  Kh7 {[%clk 0:00:22]} 27. cxb5 {[%clk 0:01:22]}  Ra5 {[%clk 0:00:20]} 28. Qd3 {[%clk 0:01:18]}  Qf3 {[%clk 0:00:18]} 29. Qc4 {[%clk 0:01:09]}  h4 {[%clk 0:00:15]} 30. Rd2 {[%clk 0:00:21]}  h3 {[%clk 0:00:14]} 31. Qf1 {[%clk 0:00:22]}  Ra4 {[%clk 0:00:09]} 32. Re3 {[%clk 0:00:21]}  Qf7 {[%clk 0:00:09]} 33. Qc1 {[%clk 0:00:18]}  Rb4 {[%clk 0:00:09]} 34. Qd1 {[%clk 0:00:14]}  Bc8 {[%clk 0:00:07]} 35. Qf1 {[%clk 0:00:11]}  Bd7 {[%clk 0:00:06]} 36. f4 {[%clk 0:00:08]}  gxf3 {[%clk 0:00:05]} 37. Rf2 {[%clk 0:00:08]}  Rxb5 {[%clk 0:00:01]} 38. e5 {[%clk 0:00:06]} 1-0


[Site "https://www.chess.com"]